bitfinex/quotes_BTCUSD_20250614
["timestamp","ask_amount","ask_price","bid_price","bid_amount"]
[1749884675762,0.96400674,105140.0,105130.0,0.05988391]
[1749884675970,0.96400674,105140.0,105130.0,0.05096491]
[1749884676146,0.96400674,105140.0,105130.0,0.0688029]
[1749884677171,0.96400674,105140.0,105130.0,0.04204592]
[1749884677402,1.12100674,105140.0,105130.0,0.04448391]
[1749884677908,1.12100674,105140.0,105130.0,0.05340292]
[1749884678361,1.12100674,105140.0,105130.0,0.03556491]
[1749884678797,1.12100674,105140.0,105130.0,0.02664592]
[1749884679042,1.12100674,105140.0,105130.0,0.05340301]
[1749884679286,1.21715596,105140.0,105130.0,0.03790301]
[1749884679497,1.17150674,105140.0,105130.0,0.03790313]
[1749884679711,1.17150674,105140.0,105130.0,0.03790511]
[1749884679712,1.20007774,105140.0,105130.0,0.03790511]
[1749884679922,1.20007774,105140.0,105130.0,0.03790527]
[1749884680135,1.20007774,105140.0,105130.0,0.03790552]
[1749884680345,1.17150674,105140.0,105130.0,0.03790572]
[1749884680759,1.17150674,105140.0,105130.0,0.01114592]
[1749884680970,1.17150674,105140.0,105130.0,0.03790572]
[1749884681175,1.17150674,105140.0,105130.0,0.02898579]
[1749884681391,1.17150674,105140.0,105130.0,0.03790572]
[1749884681817,1.17150674,105140.0,105130.0,0.02898579]
[1749884682234,1.17150674,105140.0,105130.0,0.03790572]
[1749884682468,1.17150674,105140.0,105130.0,0.02898579]
[1749884682688,1.17150674,105140.0,105130.0,0.03790572]
[1749884683633,1.17150674,105140.0,105130.0,0.02006585]
[1749884683861,1.17150674,105140.0,105130.0,0.02898579]
[1749884684090,1.17150674,105140.0,105130.0,0.01114592]
[1749884684314,1.17150674,105140.0,105130.0,0.02898579]
[1749884684782,1.17150674,105140.0,105130.0,0.03790567]
[1749884685005,1.17150674,105140.0,105130.0,0.03790556]
[1749884686553,1.17150674,105140.0,105130.0,0.0200658]
[1749884686762,1.17150674,105140.0,105130.0,0.03790556]
[1749884686968,1.17150674,105140.0,105130.0,0.0200658]
[1749884687195,1.17150674,105140.0,105130.0,0.03790556]
[1749884687639,1.17150674,105140.0,105130.0,0.0200658]
[1749884687860,1.17150674,105140.0,105130.0,0.03790556]
[1749884688710,1.17150674,105140.0,105130.0,0.037853]
[1749884689129,1.17150674,105140.0,105130.0,0.02004828]
[1749884689563,1.17150674,105140.0,105130.0,0.037853]
[1749884691627,1.17150674,105140.0,105130.0,0.02895064]
[1749884691838,1.17150674,105140.0,105130.0,0.037853]
[1749884692047,1.17150674,105140.0,105130.0,0.02895064]
[1749884692256,1.17150674,105140.0,105130.0,0.037853]
[1749884692669,1.17150674,105140.0,105130.0,0.01114592]
[1749884692895,1.17150674,105140.0,105130.0,0.037853]
[1749884693363,1.19338097,105140.0,105130.0,0.02004828]
[1749884693566,1.19338097,105140.0,105130.0,0.037853]
[1749884694420,1.19338097,105140.0,105130.0,0.02895064]
[1749884694629,1.19338097,105140.0,105130.0,0.037853]
[1749884694856,1.19338097,105140.0,105130.0,0.02004828]
[1749884695066,1.28228935,105140.0,105130.0,0.037853]
[1749884695477,1.28228935,105140.0,105130.0,0.02004828]
[1749884695661,1.28228935,105140.0,105130.0,0.037853]
[1749884696072,1.28228935,105140.0,105130.0,0.02004828]
[1749884696284,1.17955857,105140.0,105130.0,0.02004827]
[1749884696491,1.07755857,105140.0,105130.0,0.03785298]
[1749884696926,1.07755857,105140.0,105130.0,0.02004827]
[1749884697229,1.07755857,105140.0,105130.0,0.03785298]
[1749884698502,1.16755857,105140.0,105130.0,0.03785298]
[1749884698705,1.16755857,105140.0,105130.0,0.01114592]
[1749884698904,1.07140935,105140.0,105130.0,0.03785298]
[1749884699113,1.05630935,105140.0,105130.0,0.03785298]
[1749884699321,1.05630935,105140.0,105130.0,0.02895063]
[1749884699534,1.05630935,105140.0,105130.0,0.03785298]
[1749884699745,1.05630935,105140.0,105130.0,0.02004827]
[1749884699956,1.05630935,105140.0,105130.0,0.03785298]
[1749884700159,1.43230417,105140.0,105130.0,0.03785298]
[1749884700377,2.04330174,105140.0,105130.0,0.03785298]
[1749884700596,0.46659335,105130.0,105120.0,0.01057881]
[1749884700877,1.60410455,105130.0,105120.0,0.01057881]
[1749884701517,1.94410455,105130.0,105120.0,0.01057881]
[1749884701731,2.04025377,105130.0,105120.0,0.01057881]
[1749884701953,2.06883277,105130.0,105120.0,0.01057881]
[1749884702796,2.07283277,105130.0,105120.0,0.01057881]
[1749884703010,2.56193277,105130.0,105120.0,0.01057881]
[1749884703232,2.56593277,105130.0,105120.0,0.01057881]
[1749884716128,2.60697277,105130.0,105120.0,0.01057881]
[1749884719565,2.49478355,105130.0,105120.0,0.01057881]
[1749884720511,2.03291031,105130.0,105120.0,0.02657881]
[1749884720805,2.45567889,105130.0,105120.0,0.02657881]
[1749884720939,2.45567889,105130.0,105120.0,0.04442207]
[1749884721353,2.45567889,105130.0,105120.0,0.04302207]
[1749884721552,2.45567889,105130.0,105120.0,0.02517881]
[1749884721779,2.55182811,105130.0,105120.0,0.04302207]
[1749884722408,2.55182811,105130.0,105120.0,0.02517881]
[1749884722624,2.45567889,105130.0,105120.0,0.04302207]
[1749884723031,2.45567889,105130.0,105120.0,0.02517881]
[1749884723238,2.45567889,105130.0,105120.0,0.04302207]
[1749884724513,1.41894412,105130.0,105120.0,0.05812207]
[1749884724712,2.0246065,105130.0,105120.0,0.05812207]
[1749884724863,2.04733656,105130.0,105120.0,0.05812198]
[1749884725067,2.04733656,105130.0,105120.0,0.05812202]
[1749884725283,2.08301914,105130.0,105120.0,0.05812202]
[1749884725479,2.08301914,105130.0,105120.0,0.04027881]
[1749884725930,2.08301914,105130.0,105120.0,0.05812202]
[1749884726406,2.51401153,105130.0,105120.0,0.05812202]
[1749884726802,2.51401153,105130.0,105120.0,0.05812201]
[1749884726999,2.51401153,105130.0,105120.0,0.04027881]
[1749884727211,2.51401153,105130.0,105120.0,0.05812201]
[1749884727413,2.78809153,105130.0,105120.0,0.04027881]
[1749884727629,2.78809153,105130.0,105120.0,0.05812201]
[1749884728446,2.78809153,105130.0,105120.0,0.04302201]
[1749884728663,2.81989153,105130.0,105120.0,0.02702201]
[1749884728873,2.81989153,105130.0,105120.0,0.00917881]
[1749884729087,2.81993153,105130.0,105120.0,0.00917881]
[1749884731469,2.84838653,105130.0,105120.0,0.00917881]
[1749884742398,2.86856293,105130.0,105120.0,0.00917881]
[1749884745172,2.63059608,105130.0,105120.0,0.00917881]
[1749884746426,2.62893508,105130.0,105120.0,0.00917881]
[1749884746766,2.63844693,105130.0,105120.0,0.00917881]
[1749884750444,2.65040193,105130.0,105120.0,0.00917881]
[1749884750812,2.85040193,105130.0,105120.0,0.00917881]
[1749884751018,2.86610193,105130.0,105120.0,0.00917881]
[1749884755126,2.85040193,105130.0,105120.0,0.00917881]
[1749884756315,7.96540193,105130.0,105120.0,0.00917881]
[1749884756552,7.96540193,105130.0,105100.0,0.04248672]
[1749884756553,1.43483714,105110.0,105100.0,0.04248672]
[1749884756755,2.20153325,105110.0,105100.0,0.05140685]
[1749884756959,1.77054086,105110.0,105100.0,0.06032701]
[1749884757166,1.77054086,105110.0,105100.0,0.04248672]
[1749884757379,1.79912186,105110.0,105100.0,0.06924775]
[1749884757829,1.79912186,105110.0,105100.0,0.06924776]
[1749884758035,1.79912186,105110.0,105100.0,0.06924777]
[1749884758437,1.80012186,105110.0,105100.0,0.06032745]
[1749884758742,1.80012186,105110.0,105100.0,0.06032744]
[1749884758922,1.80012186,105110.0,105100.0,0.06924781]
[1749884759362,1.89627108,105110.0,105100.0,0.04248672]
[1749884759582,1.80012186,105110.0,105100.0,0.06032733]
[1749884759794,1.80012186,105110.0,105100.0,0.06924775]
[1749884760008,1.36912947,105110.0,105100.0,0.06924799]
[1749884760225,1.82290362,105110.0,105100.0,0.06924799]
[1749884760431,1.91290362,105110.0,105100.0,0.06924799]
[1749884760883,2.00905284,105110.0,105100.0,0.06924799]
[1749884761390,2.00905284,105110.0,105100.0,0.06032757]
[1749884762253,2.44004523,105110.0,105100.0,0.06924799]
[1749884762476,2.44004523,105110.0,105100.0,0.05140752]
[1749884762477,2.41726347,105110.0,105100.0,0.05140752]
[1749884762697,2.00905393,105110.0,105100.0,0.04248672]
[1749884762915,1.57806154,105110.0,105100.0,0.06924963]
[1749884763128,2.00905393,105110.0,105100.0,0.06924985]
[1749884763342,1.91290471,105110.0,105100.0,0.05140776]
[1749884763549,1.91290471,105110.0,105100.0,0.06924985]
[1749884763762,1.91290471,105110.0,105100.0,0.0692499]
[1749884763944,1.91290471,105110.0,105100.0,0.06924995]
[1749884765037,1.91290471,105110.0,105100.0,0.06925026]
[1749884765220,2.00905393,105110.0,105100.0,0.06925026]
[1749884765377,2.00905393,105110.0,105100.0,0.06925027]
[1749884765582,2.00905393,105110.0,105100.0,0.0514079]
[1749884765786,2.00905393,105110.0,105100.0,0.06925027]
[1749884766105,2.00905393,105110.0,105100.0,0.04392909]
[1749884766281,2.00905393,105110.0,105100.0,0.05285027]
[1749884766486,2.00905393,105110.0,105100.0,0.02608672]
[1749884766684,2.00905393,105110.0,105100.0,0.04392909]
[1749884766877,2.00905393,105110.0,105100.0,0.0350079]
[1749884767102,2.00905393,105110.0,105100.0,0.06177146]
[1749884767322,2.00905393,105110.0,105100.0,0.05285027]
[1749884767529,2.00905393,105110.0,105100.0,0.04392909]
[1749884767887,2.00905393,105110.0,105100.0,0.07069264]
[1749884768129,2.00905393,105110.0,105100.0,0.06177146]
[1749884768327,2.00905393,105110.0,105100.0,0.07069264]
[1749884768734,2.00905393,105110.0,105100.0,0.05285027]
[1749884769208,2.04993393,105110.0,105100.0,0.05285027]
[1749884769615,2.04993393,105110.0,105100.0,0.06177146]
[1749884769822,2.04993393,105110.0,105100.0,0.05285027]
[1749884770046,2.04993393,105110.0,105100.0,0.07069264]
[1749884770482,2.04993393,105110.0,105100.0,0.07069275]
[1749884770702,2.04993393,105110.0,105100.0,0.05285032]
[1749884770971,2.04993393,105110.0,105100.0,0.07069278]
[1749884771395,1.62993393,105110.0,105100.0,0.07069278]
[1749884771837,1.19894154,105110.0,105100.0,0.07069278]
[1749884772049,1.53378471,105110.0,105100.0,0.07069278]
[1749884772481,1.53378471,105110.0,105100.0,0.05285032]
[1749884772684,1.53378471,105110.0,105100.0,0.04392909]
[1749884773105,1.30279232,105110.0,105100.0,0.04392909]
[1749884773321,1.73378471,105110.0,105100.0,0.05922909]
[1749884775008,1.82993393,105110.0,105100.0,0.05922909]
[1749884775221,1.82993393,105110.0,105100.0,0.04392909]
[1749884775864,1.82993393,105110.0,105100.0,0.05922909]
[1749884776821,1.73378471,105110.0,105100.0,0.05922909]
[1749884779910,1.53654471,105110.0,105100.0,0.05922909]
[1749884780079,1.73422471,105110.0,105100.0,0.05922909]
[1749884782303,2.00834471,105110.0,105100.0,0.05922909]
[1749884782954,2.00834471,105110.0,105100.0,0.08598966]
[1749884783153,2.10449393,105110.0,105100.0,0.06814928]
[1749884783357,2.10449393,105110.0,105100.0,0.08598966]
[1749884783750,2.10449393,105110.0,105100.0,0.06814928]
[1749884784234,2.10449393,105110.0,105100.0,0.05922909]
[1749884784460,2.10449393,105110.0,105100.0,0.08598966]
[1749884784679,2.10449393,105110.0,105100.0,0.07068966]
[1749884784875,2.10449393,105110.0,105100.0,0.08853004]
[1749884785526,2.10449393,105110.0,105100.0,0.07068966]
[1749884785747,2.10449393,105110.0,105100.0,0.08853004]
[1749884786200,2.10449393,105110.0,105100.0,0.07068966]
[1749884786404,2.10449393,105110.0,105100.0,0.07960985]
[1749884786822,2.00814471,105110.0,105100.0,0.08853004]
[1749884787027,2.00814471,105110.0,105100.0,0.0961096]
[1749884787238,2.00814471,105110.0,105100.0,0.07826947]
[1749884787442,2.00814471,105110.0,105100.0,0.08718948]
[1749884787655,2.00814471,105110.0,105100.0,0.1050295]
[1749884787908,2.00814471,105110.0,105100.0,0.09610949]
[1749884788102,2.00814471,105110.0,105100.0,0.1050295]
[1749884788311,2.00814471,105110.0,105100.0,0.07826947]
[1749884788519,2.00814471,105110.0,105100.0,0.08718948]
[1749884788877,2.00814471,105110.0,105100.0,0.07826947]
[1749884789079,2.00814471,105110.0,105100.0,0.1050295]
[1749884789318,2.00814471,105110.0,105100.0,0.1006695]
[1749884790378,2.10429393,105110.0,105100.0,0.1006695]
[1749884790573,2.00814471,105110.0,105100.0,0.1006695]
[1749884790790,1.57715232,105110.0,105100.0,0.07390947]
[1749884791000,1.57715232,105110.0,105100.0,0.1006695]
[1749884791201,2.00814471,105110.0,105100.0,0.1006695]
[1749884791619,2.00814471,105110.0,105100.0,0.09174949]
[1749884792005,2.00814471,105110.0,105100.0,0.08282948]
[1749884792177,2.00814471,105110.0,105100.0,0.1006695]
[1749884792386,2.00814471,105110.0,105100.0,0.09174949]
[1749884792831,2.00814471,105110.0,105100.0,0.07390947]
[1749884793015,2.10429393,105110.0,105100.0,0.1006695]
[1749884793348,2.00814471,105110.0,105100.0,0.1006695]
[1749884793768,2.00814471,105110.0,105100.0,0.07390947]
[1749884793974,2.00814471,105110.0,105100.0,0.1006695]
[1749884794865,2.00814471,105110.0,105100.0,0.05740947]
[1749884795099,2.10429393,105110.0,105100.0,0.08417028]
[1749884795236,2.10429393,105110.0,105100.0,0.06632974]
[1749884795469,2.10429393,105110.0,105100.0,0.06887028]
[1749884795636,2.12009393,105110.0,105100.0,0.06887028]
[1749884795981,2.55108632,105110.0,105100.0,0.06887043]
[1749884796196,2.55108632,105110.0,105100.0,0.04210947]
[1749884796402,2.59606489,105110.0,105100.0,0.04210947]
[1749884797529,2.59906489,105110.0,105100.0,0.04210947]
[1749884797940,2.60206489,105110.0,105100.0,0.04210947]
[1749884799281,2.63120415,105110.0,105100.0,0.04210947]
[1749884799837,2.63120415,105110.0,105080.0,0.02517837]
[1749884799838,0.76934373,105090.0,105080.0,0.02517837]
[1749884800052,1.82872851,105090.0,105080.0,0.04027837]
[1749884800276,1.82872851,105090.0,105080.0,0.04919518]
[1749884800466,1.82872851,105090.0,105080.0,0.04027837]
[1749884800667,1.83966976,105090.0,105080.0,0.04919523]
[1749884800870,0.97768498,105090.0,105080.0,0.04919518]
[1749884801080,1.84014663,105090.0,105080.0,0.04027837]
[1749884801327,1.84014663,105090.0,105080.0,0.04919503]
[1749884802038,1.64274663,105090.0,105080.0,0.04919502]
[1749884802254,0.97812185,105090.0,105080.0,0.04919502]
[1749884802471,1.22240836,105090.0,105080.0,0.04919498]
[1749884802682,1.22240836,105090.0,105080.0,0.07410715]
[1749884802897,1.24143903,105090.0,105080.0,0.07410715]
[1749884803129,1.24143903,105090.0,105080.0,0.04027837]
[1749884803338,1.24143903,105090.0,105080.0,0.04919197]
[1749884803749,1.67243142,105090.0,105080.0,0.04919197]
[1749884804127,1.67243142,105090.0,105080.0,0.0491922]
[1749884805426,1.67243142,105090.0,105080.0,0.04027837]
[1749884805599,1.67243142,105090.0,105080.0,0.0491922]
[1749884805807,1.67243142,105090.0,105080.0,0.04027837]
[1749884805985,1.67243142,105090.0,105080.0,0.0491922]
[1749884807709,1.67243142,105090.0,105080.0,0.04027837]
[1749884807914,1.67243142,105090.0,105080.0,0.0491922]
[1749884808159,1.67243142,105090.0,105080.0,0.04027837]
[1749884808386,1.67243142,105090.0,105080.0,0.0491922]
[1749884809395,1.67243142,105090.0,105080.0,0.04027837]
[1749884809578,1.67243142,105090.0,105080.0,0.0491919]
[1749884809794,1.67243142,105090.0,105080.0,0.04027837]
[1749884810011,1.67243142,105090.0,105080.0,0.0491919]
[1749884810446,1.67243142,105090.0,105080.0,0.04027837]
[1749884810881,1.67243142,105090.0,105080.0,0.0491919]
[1749884811450,1.67243142,105090.0,105080.0,0.04027837]
[1749884811659,1.67243142,105090.0,105080.0,0.04919806]
[1749884811831,1.67243142,105090.0,105080.0,0.06703745]
[1749884812441,1.67243142,105090.0,105080.0,0.04919806]
[1749884812641,1.67243142,105090.0,105080.0,0.06703745]
[1749884816204,1.67243142,105090.0,105080.0,0.06703976]
[1749884817019,1.67243142,105090.0,105080.0,0.04027837]
[1749884817176,1.67243142,105090.0,105080.0,0.04919883]
[1749884817582,1.67243142,105090.0,105080.0,0.0581193]
[1749884817946,1.67243142,105090.0,105080.0,0.06703976]
[1749884818375,1.67243142,105090.0,105080.0,0.04919883]
[1749884818585,1.67243142,105090.0,105080.0,0.06703976]
[1749884818964,1.28979357,105090.0,105080.0,0.06703976]
[1749884819292,1.48010663,105090.0,105080.0,0.06703976]
[1749884820111,1.48010663,105090.0,105080.0,0.04027837]
[1749884820512,1.48010663,105090.0,105080.0,0.06703976]
[1749884820734,1.48010663,105090.0,105080.0,0.0581193]
[1749884821125,1.48010663,105090.0,105080.0,0.06703976]
[1749884821769,1.48010663,105090.0,105080.0,0.0581193]
[1749884821981,1.48010663,105090.0,105080.0,0.04027837]
[1749884822244,1.48010663,105090.0,105080.0,0.06703976]
[1749884822461,1.48010663,105090.0,105080.0,0.04919883]
[1749884822673,1.78010663,105090.0,105080.0,0.06703976]
[1749884824764,1.78010663,105090.0,105080.0,0.06703967]
[1749884824967,1.78010663,105090.0,105080.0,0.04919883]
[1749884825171,1.78010663,105090.0,105080.0,0.04027837]
[1749884825374,1.78010663,105090.0,105080.0,0.04919877]
[1749884825582,1.78010663,105090.0,105080.0,0.04027837]
[1749884825782,1.78010663,105090.0,105080.0,0.05811919]
[1749884825989,1.78010663,105090.0,105080.0,0.0670396]
[1749884826218,1.78010663,105090.0,105080.0,0.06703961]
[1749884826428,1.78010663,105090.0,105080.0,0.04919878]
[1749884826632,1.78010663,105090.0,105080.0,0.06703961]
[1749884826836,1.78010663,105090.0,105080.0,0.0581192]
[1749884827057,1.78010663,105090.0,105080.0,0.06703961]
[1749884827528,1.78010663,105090.0,105080.0,0.04027837]
[1749884827753,1.78010663,105090.0,105080.0,0.06704986]
[1749884827996,1.78010663,105090.0,105080.0,0.05812603]
[1749884828222,1.78010663,105090.0,105080.0,0.06704986]
[1749884828877,1.78010663,105090.0,105080.0,0.0492022]
[1749884829098,1.78010663,105090.0,105080.0,0.06704986]
[1749884829319,1.78010663,105090.0,105080.0,0.04027837]
[1749884829526,1.78010663,105090.0,105080.0,0.06704986]
[1749884830165,1.78010663,105090.0,105080.0,0.0492022]
[1749884830370,1.78010663,105090.0,105080.0,0.06704986]
[1749884830938,1.78010663,105090.0,105080.0,0.04027837]
[1749884831141,1.78010663,105090.0,105080.0,0.06704986]
[1749884832578,1.78010663,105090.0,105080.0,0.0579095]
[1749884832788,1.78010663,105090.0,105080.0,0.06683333]
[1749884833027,1.78010663,105090.0,105080.0,0.04898567]
[1749884833271,1.78010663,105090.0,105080.0,0.06683333]
[1749884833485,0.91812185,105090.0,105080.0,0.06683333]
[1749884833737,1.78010663,105090.0,105080.0,0.06683333]
[1749884834109,1.78010663,105090.0,105080.0,0.0579095]
[1749884834247,1.78010663,105090.0,105080.0,0.06683333]
[1749884834614,1.78010663,105090.0,105080.0,0.04898497]
[1749884834785,1.78010663,105090.0,105080.0,0.06683123]
[1749884834926,1.78010663,105090.0,105080.0,0.04006184]
[1749884835261,1.78010663,105090.0,105080.0,0.04898497]
[1749884835678,1.78010663,105090.0,105080.0,0.06683123]
[1749884835886,1.78010663,105090.0,105080.0,0.04006184]
[1749884836243,1.78010663,105090.0,105080.0,0.06683123]
[1749884836645,1.78010663,105090.0,105080.0,0.04898497]
[1749884837146,1.78010663,105090.0,105080.0,0.06683123]
[1749884837598,0.91812185,105090.0,105080.0,0.0579081]
[1749884837797,1.78010663,105090.0,105080.0,0.04006184]
[1749884838000,1.78010663,105090.0,105080.0,0.06683123]
[1749884838191,1.78010663,105090.0,105080.0,0.0579081]
[1749884838346,1.78010663,105090.0,105080.0,0.04898497]
[1749884838551,1.78010663,105090.0,105080.0,0.0579081]
[1749884838906,1.78010663,105090.0,105080.0,0.06683107]
[1749884839088,1.78010663,105090.0,105080.0,0.0579081]
[1749884839318,1.78010663,105090.0,105080.0,0.06683107]
[1749884839834,1.78010663,105090.0,105080.0,0.04898481]
[1749884840036,1.78010663,105090.0,105080.0,0.06683079]
[1749884840228,1.78010663,105090.0,105080.0,0.0668309]
[1749884840429,1.78010663,105090.0,105080.0,0.06683112]
[1749884841716,1.78010663,105090.0,105080.0,0.04898493]
[1749884841914,1.78010663,105090.0,105080.0,0.06683112]
[1749884842116,1.78010663,105090.0,105080.0,0.04898493]
[1749884842322,1.78010663,105090.0,105080.0,0.04006184]
[1749884842518,1.78010663,105090.0,105080.0,0.06683112]
[1749884842744,1.78010663,105090.0,105080.0,0.04006184]
[1749884842945,1.78010663,105090.0,105080.0,0.04898493]
[1749884843176,1.78010663,105090.0,105080.0,0.06683112]
[1749884843321,1.78010663,105090.0,105080.0,0.04006184]
[1749884843542,1.87625585,105090.0,105080.0,0.03388493]
[1749884843944,1.87625585,105090.0,105080.0,0.0517312]
[1749884844167,1.87625585,105090.0,105080.0,0.05173153]
[1749884844824,1.78010663,105090.0,105080.0,0.05173153]
[1749884845068,1.78010663,105090.0,105080.0,0.02496184]
[1749884845294,1.58274663,105090.0,105080.0,0.04998498]
[1749884845619,1.77882663,105090.0,105080.0,0.04998491]
[1749884845820,1.77882663,105090.0,105080.0,0.06783091]
[1749884846026,1.77882663,105090.0,105080.0,0.06783175]
[1749884846222,1.77882663,105090.0,105080.0,0.05890967]
[1749884846431,1.77882663,105090.0,105080.0,0.06782889]
[1749884846629,1.77882663,105090.0,105080.0,0.0678289]
[1749884847178,1.77882663,105090.0,105080.0,0.04998419]
[1749884847378,1.87497585,105090.0,105080.0,0.0678289]
[1749884847573,1.87497585,105090.0,105080.0,0.04106184]
[1749884847772,1.87497585,105090.0,105080.0,0.05890655]
[1749884847976,1.77882663,105090.0,105080.0,0.0678289]
[1749884848182,1.77882663,105090.0,105080.0,0.04106184]
[1749884848382,1.77882663,105090.0,105080.0,0.0678289]
[1749884849358,1.77882663,105090.0,105080.0,0.06782889]
[1749884849533,1.77882663,105090.0,105080.0,0.04998419]
[1749884849733,1.77882663,105090.0,105080.0,0.05890654]
[1749884850086,1.77882663,105090.0,105080.0,0.0678289]
[1749884850297,1.77882663,105090.0,105080.0,0.0360289]
[1749884850635,1.77882663,105090.0,105080.0,0.02710655]
[1749884850834,1.82317492,105090.0,105080.0,0.0360289]
[1749884851244,1.82317492,105090.0,105080.0,0.00926184]
[1749884851449,1.82317492,105090.0,105080.0,0.03602937]
[1749884851647,1.82317492,105090.0,105080.0,0.00926184]
[1749884851862,1.82317492,105090.0,105080.0,0.03602935]
[1749884852458,1.82317492,105090.0,105080.0,0.03602936]
[1749884852984,1.82317492,105090.0,105080.0,0.02710686]
[1749884853440,1.82317492,105090.0,105080.0,0.02710685]
[1749884853644,1.82317492,105090.0,105080.0,0.01818434]
[1749884853861,1.82317492,105090.0,105080.0,0.00926184]
[1749884854062,1.82317492,105090.0,105080.0,0.03602937]
[1749884854275,1.82317492,105090.0,105080.0,0.01818435]
[1749884854510,1.82317492,105090.0,105080.0,0.03602935]
[1749884854719,1.82317492,105090.0,105080.0,0.00926184]
[1749884854932,1.79472663,105090.0,105080.0,0.03602936]
[1749884855142,1.79472663,105090.0,105080.0,0.02710688]
[1749884855349,1.77882663,105090.0,105080.0,0.0517294]
[1749884855760,1.77882663,105090.0,105080.0,0.03388442]
[1749884855964,1.77882663,105090.0,105080.0,0.042807]
[1749884856170,1.77882663,105090.0,105080.0,0.05172958]
[1749884856395,1.77882663,105090.0,105080.0,0.03388442]
[1749884856602,1.77882663,105090.0,105080.0,0.042807]
[1749884856807,1.77882663,105090.0,105080.0,0.05172958]
[1749884857931,1.77882663,105090.0,105080.0,0.05172942]
[1749884858134,1.77882663,105090.0,105080.0,0.05172946]
[1749884859133,1.77882663,105090.0,105080.0,0.05172958]
[1749884860274,1.81666225,105090.0,105080.0,0.05172958]
[1749884860676,1.81666225,105090.0,105080.0,0.03388442]
[1749884860880,1.77882663,105090.0,105080.0,0.05172958]
[1749884861093,1.77882663,105090.0,105080.0,0.02496184]
[1749884861298,1.77882663,105090.0,105080.0,0.05172958]
[1749884861702,1.77882663,105090.0,105080.0,0.03388442]
[1749884862045,1.77882663,105090.0,105080.0,0.05172958]
[1749884862237,1.77882663,105090.0,105080.0,0.05172554]
[1749884862450,1.77882663,105090.0,105080.0,0.05172352]
[1749884862790,1.87497585,105090.0,105080.0,0.05172352]
[1749884863421,1.87497585,105090.0,105080.0,0.05172353]
[1749884863741,1.89147585,105090.0,105080.0,0.01818241]
[1749884863940,1.89147585,105090.0,105080.0,0.03602359]
[1749884864153,1.89147585,105090.0,105080.0,0.01818241]
[1749884864375,0.91632185,105090.0,105080.0,0.05262362]
[1749884864589,1.77830663,105090.0,105080.0,0.052624]
[1749884864794,1.77830663,105090.0,105080.0,0.05262419]
[1749884864995,1.77830663,105090.0,105080.0,0.07046576]
[1749884865800,1.77830663,105090.0,105080.0,0.04370341]
[1749884866016,1.77830663,105090.0,105080.0,0.07046576]
[1749884866017,1.87445585,105090.0,105080.0,0.07046576]
[1749884866213,1.87445585,105090.0,105080.0,0.06154498]
[1749884866434,1.87441585,105090.0,105080.0,0.07046576]
[1749884866772,1.77826663,105090.0,105080.0,0.04370341]
[1749884866973,1.77826663,105090.0,105080.0,0.05262419]
[1749884867372,1.77826663,105090.0,105080.0,0.07046576]
[1749884867577,1.77826663,105090.0,105080.0,0.06154498]
[1749884867865,1.77826663,105090.0,105080.0,0.05262419]
[1749884868064,1.77826663,105090.0,105080.0,0.07046576]
[1749884868273,1.77826663,105090.0,105080.0,0.05262419]
[1749884868492,1.87441585,105090.0,105080.0,0.06154498]
[1749884868699,1.87441585,105090.0,105080.0,0.07046576]
[1749884868904,1.87441585,105090.0,105080.0,0.03602419]
[1749884869277,1.87441585,105090.0,105080.0,0.04260341]
[1749884869503,1.87441585,105090.0,105080.0,0.06936576]
[1749884869730,1.77826663,105090.0,105080.0,0.05152419]
[1749884869882,1.77826663,105090.0,105080.0,0.03602419]
[1749884870100,1.77826663,105090.0,105080.0,0.05386577]
[1749884870597,1.77826663,105090.0,105080.0,0.03602419]
[1749884870783,1.77822663,105090.0,105080.0,0.03602439]
[1749884871101,0.91624185,105090.0,105080.0,0.0449454]
[1749884871315,1.77822663,105090.0,105080.0,0.04494544]
[1749884871526,1.87437585,105090.0,105080.0,0.05386645]
[1749884871959,1.88987585,105090.0,105080.0,0.05386645]
[1749884872168,1.79372663,105090.0,105080.0,0.05386645]
[1749884872379,1.59824663,105090.0,105080.0,0.05386645]
[1749884872585,1.79376663,105090.0,105080.0,0.05386645]
[1749884872999,1.79376663,105090.0,105080.0,0.05386434]
[1749884873436,1.9128038,105090.0,105080.0,0.05386434]
[1749884873821,1.9128038,105090.0,105080.0,0.05386035]
[1749884874292,1.16150909,105090.0,105080.0,0.05386089]
[1749884874541,2.03939387,105090.0,105080.0,0.05386089]
[1749884874781,2.03939387,105090.0,105080.0,0.04494173]
[1749884875225,2.03939387,105090.0,105080.0,0.05386089]
[1749884875696,1.94332465,105090.0,105080.0,0.02710341]
[1749884876006,1.94332465,105090.0,105080.0,0.04494173]
[1749884876267,1.94332465,105090.0,105080.0,0.05386089]
[1749884876480,1.94332465,105090.0,105080.0,0.04494411]
[1749884876691,1.94332465,105090.0,105080.0,0.05386454]
[1749884876896,2.03947387,105090.0,105080.0,0.03602386]
[1749884877110,2.37947387,105090.0,105080.0,0.03602416]
[1749884877356,2.40826087,105090.0,105080.0,0.03602433]
[1749884877777,2.21246087,105090.0,105080.0,0.03602434]
[1749884877951,2.40826087,105090.0,105080.0,0.03602434]
[1749884878188,2.40826087,105090.0,105080.0,0.02710341]
[1749884878627,2.40826087,105090.0,105080.0,0.03602434]
[1749884878886,2.11631165,105090.0,105080.0,0.03602434]
[1749884879083,2.31211165,105090.0,105080.0,0.03602436]
[1749884879497,2.31211165,105090.0,105080.0,0.02710341]
[1749884879699,2.31511165,105090.0,105080.0,0.03602435]
[1749884879902,2.31911165,105090.0,105080.0,0.03602435]
[1749884880675,2.12331165,105090.0,105080.0,0.03602435]
[1749884880886,2.31915165,105090.0,105080.0,0.03602435]
[1749884881760,2.36030536,105090.0,105080.0,0.03602435]
[1749884882597,2.16446536,105090.0,105080.0,0.03602435]
[1749884882802,2.36038536,105090.0,105080.0,0.02710341]
[1749884883429,2.36038536,105090.0,105080.0,0.03602435]
[1749884883630,2.36038536,105090.0,105080.0,0.02710341]
[1749884883823,2.36038536,105090.0,105080.0,0.03602435]
[1749884884028,2.34448536,105090.0,105080.0,0.03602435]
[1749884884551,2.34448536,105090.0,105080.0,0.02710341]
[1749884884730,2.14856536,105090.0,105080.0,0.03602435]
[1749884884947,2.34440536,105090.0,105080.0,0.03602435]
[1749884885810,2.34440536,105090.0,105080.0,0.02710341]
[1749884886021,2.34440536,105090.0,105080.0,0.03602435]
[1749884886240,2.34440536,105090.0,105080.0,0.02710341]
[1749884886477,2.34440536,105090.0,105080.0,0.03602435]
[1749884886952,2.34437348,105090.0,105080.0,0.03602435]
[1749884887177,2.34437348,105090.0,105080.0,0.02710341]
[1749884887178,2.81076587,105090.0,105080.0,0.02710341]
[1749884887854,2.37977348,105090.0,105080.0,0.02710341]
[1749884888610,2.81076587,105090.0,105080.0,0.02710341]
[1749884888791,2.37977348,105090.0,105080.0,0.02710341]
[1749884889444,2.37976452,105090.0,105080.0,0.02710341]
[1749884889797,2.18392452,105090.0,105080.0,0.02710341]
[1749884890002,2.37972452,105090.0,105080.0,0.02710341]
[1749884890213,2.81071691,105090.0,105080.0,0.02710341]
[1749884890588,0.20940349,105060.0,105050.0,0.0206]
[1749884890748,1.42965039,105060.0,105050.0,0.04520931]
[1749884890959,1.42969039,105060.0,105050.0,0.04520949]